Workbook

Sheet Chart_of_Accounts
A1: Account ID | B1: Description | C1: DescrExt | D1: Account Functionality
A2: 1 | B2: CONTURI DE CAPITALURI
A3: 10 | B3: CAPITAL SI REZERVE
A4: 101 | B4: Capital social
A5: 1011 | B5: Capital subscris nevarsat
A6: 1012 | B6: Capital subscris varsat
A7: 104 | B7: Prime legate de capital
A8: 1041 | B8: Prime de emisiune
A9: 1042 | B9: Prime de fuziune
A10: 1043 | B10: Prime de aport
A11: 105 | B11: Diferente din reevaluare
A12: 106 | B12: Rezerve legale
A13: 1061 | B13: Rezerve legale
A14: 1063 | B14: Rezerve statutare
A15: 1068 | B15: Alte rezerve
A16: 107 | B16: Rezultatul reportat
A17: 108 | B17: Contul intreprinzatorului
A18: 11 | B18: FONDURI
A19: 111 | B19: Fondul de dezvoltare
A20: 112 | B20: Fondul de particip. la profit
A21: 118 | B21: Alte fonduri
A22: 119 | B22: Repartizari la fond.dezvoltare
A23: 12 | B23: REZULTATUL EXERCITIULUI
A24: 121 | B24: Profit si pierderi
A25: 121.98 | B25: PROFIT SI PIERDERE 1998
A26: 129 | B26: Repartizarea profitului
A27: 13 | B27: SUBVENTII PENTRU INVESTITII
A28: 131 | B28: Subventii pentru investitii
A29: 14 | B29: PROVIZIOANE REGLEMENTATE
A30: 141 | B30: Provizioane reglementate
A31: 1435 | B31: ANALITIC DE NIVEL I
A32: 15 | B32: PROVIZIOANE PT. RISCURI SI CHE
A33: 151 | B33: Prov. pt. riscuri si chelt.
A34: 1511 | B34: Provizioane pt. litigii
A35: 1512 | B35: Prov. pt. garantii clienti
A36: 1513 | B36: Prov. pt. chelt. de repartizat
A37: 1514 | B37: Prov. pt. pierd. din schimb v.
A38: 1518 | B38: Alte provizioane pt. riscuri
A39: 16 | B39: IMPRUMUTURI SI DATORII ASIMIL.
A40: 161 | B40: Imprum. din emisiuni obligat.
A41: 162 | B41: Credite banc. pe termen l/m
A42: 1621 | B42: Credite banc. pe termen l/m
A43: 1622 | B43: Cred. banc. l/m neramb. la sc.
A44: 1623 | B44: Credite externe guvernamentale
A45: 1624 | B45: Credite ext. garantate stat
A46: 1625 | B46: Credite ext. garantate banci
A47: 1626 | B47: Credite de la trezorerie stat
A48: 164 | B48: Datorii din concesiuni
A49: 1647 | B49: ANALITIC DE NIVEL I
A50: 166 | B50: Datorii din participatii
A51: 167 | B51: Alte imprumuturi si datorii
A52: 168 | B52: Dobinzi aferente imprum. asim.
A53: 1681 | B53: Dob. imprum. emisiuni oblig.
A54: 1682 | B54: Dob. credite pe termen l/m
A55: 1684 | B55: Dob. datorii din concesiuni
A56: 1686 | B56: Dob. datorii din participatii
A57: 1687 | B57: Dobinzi pt. alte imprumuturi
A58: 169 | B58: Prime pt. rambursare oblig.
A59: 2 | B59: CONTURI DE ACTIVE IMOBILIZATE
A60: 20 | B60: IMOBILIZARI NECORPORALE
A61: 201 | B61: Cheltuieli de constituire
A62: 203 | B62: Chelt. de cercetare si dezv.
A63: 205 | B63: Concesiuni,brevete,alte drept.
A64: 207 | B64: Fond comercial
A65: 208 | B65: Alte imobilizari necorporale
A66: 21 | B66: IMOBILIZARI CORPORALE
A67: 211 | B67: Terenuri
A68: 2111 | B68: Terenuri
A69: 2112 | B69: Amenajari de terenuri
A70: 212 | B70: Mijloace fixe
A71: 2121 | B71: Cladiri
A72: 2122 | B72: Constructii speciale
A73: 2123 | B73: Masini si util.de lucru
A74: 2124 | B74: Aparate si inst. de masura
A75: 2125 | B75: Mijloace de transport
A76: 2126 | B76: Animale si plantatii
A77: 2127 | B77: Unelte,disp.,mob,aparat.birot.
A78: 2128 | B78: Unelte,inv.gosp.,alte m.fixe
A79: 23 | B79: IMOBILIZARI IN CURS
A80: 230 | B80: Imobiliz. necorp. in curs
A81: 231 | B81: Imobiliz. corporale in curs
A82: 2500 | B82: ANALITIC DE NIVEL I
A83: 26 | B83: IMOBILIZARI FINANCIARE
A84: 261 | B84: Titluri de participare
A85: 262 | B85: Titluri imob. de portofoliu
A86: 263 | B86: Alte titluri imobilizate
A87: 264 | B87: Chelt.de tr.-aprov.pt.invest.
A88: 267 | B88: Creante imobilizate
A89: 2671 | B89: Creante legate de participatii
A90: 2672 | B90: Imprumuturi pe termen lung
A91: 2677 | B91: Alte creante imobilizate
A92: 2678 | B92: Dobinzi pt. creante imobiliz.
A93: 269 | B93: Varsaminte pt. imobilizari fin
A94: 28 | B94: AMORTIZARI PRIVIND IMOBILIZARI
A95: 280 | B95: Amortiz.imobiliz.necorporale
A96: 2801 | B96: Amortiz.chelt.de constituire
A97: 2803 | B97: Amortiz. chelt. cercet. dezv.
A98: 2805 | B98: Amort. concesiuni,brevete,alte
A99: 2807 | B99: Amortizare fond comercial
A100: 2808 | B100: Amortiz.altor imob.necorporale
A101: 281 | B101: Amortiz.imobiliz.corporale
A102: 2810 | B102: Amortizarea terenurilor
A103: 2811 | B103: Amortizarea cladirilor
A104: 2812 | B104: Amort. constr. speciale
A105: 2813 | B105: Amort. masini,ut. de lucru
A106: 2814 | B106: Amort. aparate de masura/ctrl.
A107: 2815 | B107: Amortiz.mijloacelor de transp.
A108: 2816 | B108: Amort. animale si plantatii
A109: 2817 | B109: Am. disp.,instr,aparat.birot.
A110: 2818 | B110: Amortiz.unelte,inv.gosp.,alte
A111: 29 | B111: PROV. PT. DEPRECIEREA IMOB.
A112: 290 | B112: Prov. pt. deprec. imob. necorp
A113: 291 | B113: Prov. pt. deprec. imob. corp.
A114: 293 | B114: Prov. deprec. imob. in curs
A115: 296 | B115: Prov. pt. deprec. imob. finan.
A116: 3 | B116: CONTURI DE STOCURI&PROD. NET.
A117: 30 | B117: STOCURI DE MATERII & MATERIALE
A118: 300 | B118: Materii prime
A119: 301 | B119: Materiale consumabile
A120: 3011 | B120: Materiale auxiliare
A121: 3012 | B121: Combustibili
A122: 3013 | B122: Materiale pt. ambalat
A123: 3014 | B123: Piese de schimb
A124: 3015 | B124: Seminte si mater. de plantat
A125: 3016 | B125: Furaje
A126: 3018 | B126: Alte materiale consumabile
A127: 308 | B127: Dif. de pret la mat.prime &mat
A128: 32 | B128: OBIECTE DE INVENTAR
A129: 320 | B129: Disp.avans prod.contract.
A130: 321 | B130: Obiecte de inventar
A131: 322 | B131: Uzura obiectelor de inventar
A132: 323 | B132: Baracamente
A133: 324 | B133: Disp.avans prod.din ferme spec
A134: 328 | B134: Dif. de pret la ob. inventar
A135: 33 | B135: PRODUCTIA NETERMINATA
A136: 331 | B136: Produse in curs de executie
A137: 332 | B137: Lucrari si servicii in curs
A138: 34 | B138: PRODUSE
A139: 341 | B139: Semifabricate
A140: 345 | B140: Produse finite
A141: 346 | B141: Produse reziduale
A142: 348 | B142: Diferente de pret la produse
A143: 35 | B143: STOCURI AFLATE LA TERTI
A144: 351 | B144: Materii si mat. la terti
A145: 352 | B145: Obiecte de inventar la terti
A146: 354 | B146: Produse aflate la terti
A147: 356 | B147: Animale aflate la terti
A148: 357 | B148: Marfuri in custodie la terti
A149: 358 | B149: Ambalaje la terti
A150: 36 | B150: ANIMALE
A151: 361 | B151: Animale si pasari
A152: 368 | B152: Dif. de pret la animale
A153: 37 | B153: MARFURI
A154: 371 | B154: Marfuri
A155: 3711 | B155: Marfuri depozit
A156: 3712 | B156: Marfuri chiosc ovidiu
A157: 378 | B157: Diferente de pret la marfuri
A158: 38 | B158: AMBALAJE
A159: 381 | B159: Ambalaje
A160: 388 | B160: Diferente de pret la ambalaje
A161: 39 | B161: PROV. PT. DEPREC. PROD. NETER.
A162: 390 | B162: Prov. pt. deprec. mat. prime
A163: 391 | B163: Prov. pt. deprec. mat. consum.
A164: 392 | B164: Prov. pt. deprec. ob. inventar
A165: 393 | B165: Prov. pt. deprec. prod. neter.
A166: 394 | B166: Prov. pt. deprec. produse
A167: 395 | B167: Prov. pt. deprec. stocuri tert
A168: 396 | B168: Prov. pt. depreciere animale
A169: 397 | B169: Prov. pt. deprec. marfuri
A170: 398 | B170: Prov. pt. deprec. ambalaje
A171: 4 | B171: CONTURI DE TERTI
A172: 40 | B172: FURNIZORI SI CONTURI ASIMILATE
A173: 401 | B173: Furnizori
A174: 4011 | B174: ANALITIC DE NIVEL I
A175: 403 | B175: Efecte de plata
A176: 404 | B176: Furnizori de imobilizari
A177: 4040 | B177: ANALITIC DE NIVEL I
A178: 4041 | B178: ANALITIC DE NIVEL I
A179: 405 | B179: Efecte de plata pt. imobilizar
A180: 408 | B180: Furnizori-facturi nesosite
A181: 409 | B181: Furnizori-debitori
A182: 4091 | B182: ANALITIC DE NIVEL I
A183: 41 | B183: CLIENTI SI CONTURI ASIMILATE
A184: 411 | B184: Clienti
A185: 4110 | B185: ANALITIC DE NIVEL I
A186: 4111 | B186: ANALITIC DE NIVEL I
A187: 413 | B187: Efecte de primit
A188: 416 | B188: Clienti incerti sau in litigiu
A189: 418 | B189: Clienti facturi de intocmit
A190: 419 | B190: Clienti creditori
A191: 4190 | B191: ANALITIC DE NIVEL I
A192: 4191 | B192: ANALITIC DE NIVEL I
A193: 42 | B193: PERSONAL SI CONTURI ASIMILATE
A194: 421 | B194: Personal-remuneratii datorate
A195: 423 | B195: Personal,ajutoare datorate
A196: 424 | B196: Participare sal. la profit
A197: 4241 | B197: Premii
A198: 4242 | B198: Part. sal. la profit anual
A199: 425 | B199: Avansuri personal
A200: 426 | B200: Drepturi personal neridicate
... 272 more rows

Sheet TrialBalance
A1: Year | B1: Month | C1: Account ID | D1: Db_Jan | E1: Cr_Jan | F1: Db_Prev | G1: Cr_Prev | H1: Db_Month | I1: Cr_Month | J1: Db_Total | K1: Cr_Total | L1: Sold_Db | M1: Sold_Cr
A2: 1999 | B2: 10 | C2: 1 | D2: 0 | E2: 0 | F2: 0 | G2: 0 | J2: =D2+F2+H2 -> 0 | K2: =E2+G2+I2 -> 0 | L2: =IF(J2>K2,J2-K2,0) -> 0 | M2: =IF(K2>J2,K2-J2,0) -> 0
A3: 1999 | B3: 10 | C3: 10 | D3: 0 | E3: 1895000 | F3: 100 | G3: 1895000 | J3: 100 | K3: =E3+G3+I3 -> 3790000 | L3: =IF(J3>K3,J3-K3,0) -> 0 | M3: =IF(K3>J3,K3-J3,0) -> 3789900
A4: 1999 | B4: 10 | C4: 101 | D4: 0 | E4: 2000000 | F4: 0 | G4: 2000000 | J4: 0 | K4: 4000000 | L4: 0 | M4: 4000000
A5: 1999 | B5: 10 | C5: 1011 | D5: 0 | E5: 0 | F5: 0 | G5: 0 | J5: 0 | K5: 0 | L5: 0 | M5: 0
A6: 1999 | B6: 10 | C6: 1012 | D6: 0 | E6: 2000000 | F6: 0 | G6: 2000000 | J6: 0 | K6: 4000000 | L6: 0 | M6: 4000000
A7: 1999 | B7: 10 | C7: 104 | D7: 0 | E7: 0 | F7: 0 | G7: 0 | J7: 0 | K7: 0 | L7: 0 | M7: 0
A8: 1999 | B8: 10 | C8: 105 | D8: 0 | E8: 0 | F8: 0 | G8: 0 | J8: 0 | K8: 0 | L8: 0 | M8: 0
A9: 1999 | B9: 10 | C9: 106 | D9: 0 | E9: 0 | F9: 0 | G9: 0 | J9: 0 | K9: 0 | L9: 0 | M9: 0
A10: 1999 | B10: 10 | C10: 11 | D10: 0 | E10: 50000000 | F10: 0 | G10: 50000000 | J10: 0 | K10: 100000000 | L10: 0 | M10: 100000000
A11: 1999 | B11: 10 | C11: 111 | D11: 0 | E11: 0 | F11: 0 | G11: 0 | J11: 0 | K11: 0 | L11: 0 | M11: 0
A12: 1999 | B12: 10 | C12: 112 | D12: 0 | E12: 0 | F12: 0 | G12: 0 | J12: 0 | K12: 0 | L12: 0 | M12: 0
A13: 1999 | B13: 10 | C13: 118 | D13: 0 | E13: 50689269 | F13: 0 | G13: 50689269 | J13: 0 | K13: 101378538 | L13: 0 | M13: 101378538
A14: 1999 | B14: 10 | C14: 119 | D14: 0 | E14: 0 | F14: 0 | G14: 0 | J14: 0 | K14: 0 | L14: 0 | M14: 0
A15: 1999 | B15: 10 | C15: 12 | D15: 0 | E15: 0 | F15: 4421076922 | G15: 4287510430 | J15: 4421076922 | K15: 4287510430 | L15: 133566491.7 | M15: 0
A16: 1999 | B16: 10 | C16: 121 | D16: 0 | E16: 123945704.8 | F16: 4421076922 | G16: 4287510430 | J16: 4421076922 | K16: 4411456135 | L16: 9620786.89 | M16: 0
A17: 1999 | B17: 10 | C17: 121.97 | D17: 0 | E17: 0 | F17: 0 | G17: 0 | J17: 0 | K17: 0 | L17: 0 | M17: 0
A18: 1999 | B18: 10 | C18: 121.98 | D18: 0 | E18: 0 | F18: 0 | G18: 0 | J18: 0 | K18: 0 | L18: 0 | M18: 0
A19: 1999 | B19: 10 | C19: 129 | D19: 123945704.8 | E19: 0 | F19: 123945704.8 | G19: 123945704.8 | J19: 247891409.6 | K19: 123945704.8 | L19: 123945704.8 | M19: 0
A20: 1999 | B20: 10 | C20: 13 | D20: 0 | E20: 0 | F20: 0 | G20: 0 | J20: 0 | K20: 0 | L20: 0 | M20: 0
A21: 1999 | B21: 10 | C21: 131 | D21: 0 | E21: 0 | F21: 0 | G21: 0 | J21: 0 | K21: 0 | L21: 0 | M21: 0
A22: 1999 | B22: 10 | C22: 14 | D22: 0 | E22: 0 | F22: 0 | G22: 0 | J22: 0 | K22: 0 | L22: 0 | M22: 0
A23: 1999 | B23: 10 | C23: 141 | D23: 0 | E23: 0 | F23: 0 | G23: 0 | J23: 0 | K23: 0 | L23: 0 | M23: 0
A24: 1999 | B24: 10 | C24: 15 | D24: 0 | E24: 0 | F24: 0 | G24: 0 | J24: =D24+F24+H24 -> 0 | K24: 0 | L24: 0 | M24: 0
A25: 1999 | B25: 10 | C25: 151 | D25: 0 | E25: 0 | F25: 0 | G25: 0 | J25: 0 | K25: 0 | L25: 0 | M25: 0
A26: 1999 | B26: 10 | C26: 1511 | D26: 0 | E26: 0 | F26: 0 | G26: 0 | J26: 0 | K26: 0 | L26: 0 | M26: 0
A27: 1999 | B27: 10 | C27: 1512 | D27: 0 | E27: 0 | F27: 0 | G27: 0 | J27: 0 | K27: 0 | L27: 0 | M27: 0
A28: 1999 | B28: 10 | C28: 1513 | D28: 0 | E28: 0 | F28: 0 | G28: 0 | J28: 0 | K28: 0 | L28: 0 | M28: 0
A29: 1999 | B29: 10 | C29: 1514 | D29: 0 | E29: 0 | F29: 0 | G29: 0 | J29: 0 | K29: 0 | L29: 0 | M29: 0
A30: 1999 | B30: 10 | C30: 1518 | D30: 0 | E30: 0 | F30: 0 | G30: 0 | J30: 0 | K30: 0 | L30: 0 | M30: 0
A31: 1999 | B31: 10 | C31: 16 | D31: 0 | E31: 0 | F31: 0 | G31: 0 | J31: 0 | K31: 0 | L31: 0 | M31: 0
A32: 1999 | B32: 10 | C32: 161 | D32: 0 | E32: 0 | F32: 0 | G32: 0 | J32: 0 | K32: 0 | L32: 0 | M32: 0
A33: 1999 | B33: 10 | C33: 162 | D33: 0 | E33: 0 | F33: 0 | G33: 0 | J33: 0 | K33: 0 | L33: 0 | M33: 0
A34: 1999 | B34: 10 | C34: 1621 | D34: 0 | E34: 0 | F34: 0 | G34: 0 | J34: 0 | K34: 0 | L34: 0 | M34: 0
A35: 1999 | B35: 10 | C35: 1622 | D35: 0 | E35: 0 | F35: 0 | G35: 0 | J35: 0 | K35: 0 | L35: 0 | M35: 0
A36: 1999 | B36: 10 | C36: 1623 | D36: 0 | E36: 0 | F36: 0 | G36: 0 | J36: 0 | K36: 0 | L36: 0 | M36: 0
A37: 1999 | B37: 10 | C37: 1624 | D37: 0 | E37: 0 | F37: 0 | G37: 0 | J37: 0 | K37: 0 | L37: 0 | M37: 0
A38: 1999 | B38: 10 | C38: 1625 | D38: 0 | E38: 0 | F38: 0 | G38: 0 | J38: 0 | K38: 0 | L38: 0 | M38: 0
A39: 1999 | B39: 10 | C39: 1626 | D39: 0 | E39: 0 | F39: 0 | G39: 0 | J39: 0 | K39: 0 | L39: 0 | M39: 0
A40: 1999 | B40: 10 | C40: 164 | D40: 0 | E40: 0 | F40: 0 | G40: 0 | J40: 0 | K40: 0 | L40: 0 | M40: 0
A41: 1999 | B41: 10 | C41: 166 | D41: 0 | E41: 0 | F41: 0 | G41: 0 | J41: 0 | K41: 0 | L41: 0 | M41: 0
A42: 1999 | B42: 10 | C42: 167 | D42: 0 | E42: 0 | F42: 0 | G42: 0 | J42: 0 | K42: 0 | L42: 0 | M42: 0
A43: 1999 | B43: 10 | C43: 168 | D43: 0 | E43: 0 | F43: 0 | G43: 0 | J43: 0 | K43: 0 | L43: 0 | M43: 0
A44: 1999 | B44: 10 | C44: 1681 | D44: 0 | E44: 0 | F44: 0 | G44: 0 | J44: 0 | K44: 0 | L44: 0 | M44: 0
A45: 1999 | B45: 10 | C45: 1682 | D45: 0 | E45: 0 | F45: 0 | G45: 0 | J45: 0 | K45: 0 | L45: 0 | M45: 0
A46: 1999 | B46: 10 | C46: 1684 | D46: 0 | E46: 0 | F46: 0 | G46: 0 | J46: 0 | K46: 0 | L46: 0 | M46: 0
A47: 1999 | B47: 10 | C47: 1686 | D47: 0 | E47: 0 | F47: 0 | G47: 0 | J47: 0 | K47: 0 | L47: 0 | M47: 0
A48: 1999 | B48: 10 | C48: 1687 | D48: 0 | E48: 0 | F48: 0 | G48: 0 | J48: 0 | K48: 0 | L48: 0 | M48: 0
A49: 1999 | B49: 10 | C49: 169 | D49: 0 | E49: 0 | F49: 0 | G49: 0 | J49: 0 | K49: 0 | L49: 0 | M49: 0
A50: 1999 | B50: 10 | C50: 1999 | D50: 0 | E50: 51895000 | F50: 4421076922 | G50: 4339405430 | J50: 4421076922 | K50: 4391300430 | L50: 29776491.7 | M50: 0
A51: 1999 | B51: 10 | C51: 2 | D51: 34134727 | E51: 0 | F51: 87171967 | G51: 8811756 | J51: 121306694 | K51: 8811756 | L51: 112494938 | M51: 0
A52: 1999 | B52: 10 | C52: 20 | D52: 0 | E52: 0 | F52: 0 | G52: 0 | J52: 0 | K52: 0 | L52: 0 | M52: 0
A53: 1999 | B53: 10 | C53: 201 | D53: 0 | E53: 0 | F53: 0 | G53: 0 | J53: 0 | K53: 0 | L53: 0 | M53: 0
A54: 1999 | B54: 10 | C54: 203 | D54: 0 | E54: 0 | F54: 0 | G54: 0 | J54: 0 | K54: 0 | L54: 0 | M54: 0
A55: 1999 | B55: 10 | C55: 205 | D55: 0 | E55: 0 | F55: 0 | G55: 0 | J55: 0 | K55: 0 | L55: 0 | M55: 0
A56: 1999 | B56: 10 | C56: 207 | D56: 0 | E56: 0 | F56: 0 | G56: 0 | J56: 0 | K56: 0 | L56: 0 | M56: 0
A57: 1999 | B57: 10 | C57: 208 | D57: 0 | E57: 0 | F57: 0 | G57: 0 | J57: 0 | K57: 0 | L57: 0 | M57: 0
A58: 1999 | B58: 10 | C58: 21 | D58: 36345856 | E58: 0 | F58: 89383096 | G58: 0 | J58: 125728952 | K58: 0 | L58: 125728952 | M58: 0
A59: 1999 | B59: 10 | C59: 211 | D59: 0 | E59: 0 | F59: 0 | G59: 0 | J59: =D59+F59+H59 -> 0 | K59: =E59+G59+I59 -> 0 | L59: 0 | M59: 0
A60: 1999 | B60: 10 | C60: 2111 | D60: 0 | E60: 0 | F60: 0 | G60: 0 | J60: 0 | K60: 0 | L60: 0 | M60: 0
A61: 1999 | B61: 10 | C61: 2112 | D61: 0 | E61: 0 | F61: 0 | G61: 0 | J61: 0 | K61: 0 | L61: 0 | M61: 0
A62: 1999 | B62: 10 | C62: 212 | D62: 36345856 | E62: 0 | F62: 89383096 | G62: 0 | J62: 125728952 | K62: 0 | L62: 125728952 | M62: 0
A63: 1999 | B63: 10 | C63: 2121 | D63: 0 | E63: 0 | F63: 0 | G63: 0 | J63: 0 | K63: 0 | L63: 0 | M63: 0
A64: 1999 | B64: 10 | C64: 2122 | D64: 0 | E64: 0 | F64: 4098361 | G64: 0 | J64: 4098361 | K64: 0 | L64: 4098361 | M64: 0
A65: 1999 | B65: 10 | C65: 2122.01 | D65: 0 | E65: 0 | F65: 4098361 | G65: 0 | J65: 4098361 | K65: 0 | L65: 4098361 | M65: 0
A66: 1999 | B66: 10 | C66: 2123 | D66: 0 | E66: 0 | F66: 0 | G66: 0 | J66: 0 | K66: 0 | L66: 0 | M66: 0
A67: 1999 | B67: 10 | C67: 2123.01 | D67: 0 | E67: 0 | F67: 0 | G67: 0 | J67: 0 | K67: 0 | L67: =IF(J67>K67,J67-K67,0) -> 0 | M67: =IF(K67>J67,K67-J67,0) -> 0
A68: 1999 | B68: 10 | C68: 2124 | D68: 0 | E68: 0 | F68: 45039879 | G68: 0 | J68: 45039879 | K68: 0 | L68: 45039879 | M68: 0
A69: 1999 | B69: 10 | C69: 2124.01 | D69: 0 | E69: 0 | F69: 45039879 | G69: 0 | J69: 45039879 | K69: 0 | L69: 45039879 | M69: 0
A70: 1999 | B70: 10 | C70: 2125 | D70: 0 | E70: 0 | F70: 0 | G70: 0 | J70: 0 | K70: 0 | L70: 0 | M70: 0
A71: 1999 | B71: 10 | C71: 2125.01 | D71: 0 | E71: 0 | F71: 0 | G71: 0 | J71: 0 | K71: 0 | L71: 0 | M71: 0
A72: 1999 | B72: 10 | C72: 2126 | D72: 0 | E72: 0 | F72: 40244856 | G72: 0 | J72: 40244856 | K72: 0 | L72: 40244856 | M72: 0
A73: 1999 | B73: 10 | C73: 2126.01 | D73: 0 | E73: 0 | F73: 6598000 | G73: 0 | J73: 6598000 | K73: 0 | L73: 6598000 | M73: 0
A74: 1999 | B74: 10 | C74: 2126.02 | D74: 0 | E74: 0 | F74: 5980000 | G74: 0 | J74: 5980000 | K74: 0 | L74: 5980000 | M74: 0
A75: 1999 | B75: 10 | C75: 2126.03 | D75: 0 | E75: 0 | F75: 18300823 | G75: 0 | J75: 18300823 | K75: 0 | L75: 18300823 | M75: 0
A76: 1999 | B76: 10 | C76: 2126.04 | D76: 0 | E76: 0 | F76: 3168033 | G76: 0 | J76: 3168033 | K76: 0 | L76: 3168033 | M76: 0
A77: 1999 | B77: 10 | C77: 2126.05 | D77: 0 | E77: 0 | F77: 2299000 | G77: 0 | J77: 2299000 | K77: 0 | L77: 2299000 | M77: 0
A78: 1999 | B78: 10 | C78: 2126.06 | D78: 0 | E78: 0 | F78: 3899000 | G78: 0 | J78: 3899000 | K78: 0 | L78: 3899000 | M78: 0
A79: 1999 | B79: 10 | C79: 2127 | D79: 33177823 | E79: 0 | F79: 0 | G79: 0 | J79: 33177823 | K79: 0 | L79: 33177823 | M79: 0
A80: 1999 | B80: 10 | C80: 2127.01 | D80: 6598000 | E80: 0 | F80: 0 | G80: 0 | J80: 6598000 | K80: 0 | L80: 6598000 | M80: 0
A81: 1999 | B81: 10 | C81: 2127.02 | D81: 2990000 | E81: 0 | F81: 0 | G81: 0 | J81: 2990000 | K81: 0 | L81: 2990000 | M81: 0
A82: 1999 | B82: 10 | C82: 2127.03 | D82: 2990000 | E82: 0 | F82: 0 | G82: 0 | J82: 2990000 | K82: 0 | L82: 2990000 | M82: 0
A83: 1999 | B83: 10 | C83: 2127.04 | D83: 18300823 | E83: 0 | F83: 0 | G83: 0 | J83: 18300823 | K83: 0 | L83: 18300823 | M83: 0
A84: 1999 | B84: 10 | C84: 2128 | D84: 3168033 | E84: 0 | F84: 0 | G84: 0 | J84: 3168033 | K84: 0 | L84: 3168033 | M84: 0
A85: 1999 | B85: 10 | C85: 23 | D85: 0 | E85: 0 | F85: 0 | G85: 0 | J85: 0 | K85: 0 | L85: 0 | M85: 0
A86: 1999 | B86: 10 | C86: 230 | D86: 0 | E86: 0 | F86: 0 | G86: 0 | J86: 0 | K86: 0 | L86: 0 | M86: 0
A87: 1999 | B87: 10 | C87: 231 | D87: 0 | E87: 0 | F87: 0 | G87: 0 | J87: 0 | K87: 0 | L87: 0 | M87: 0
A88: 1999 | B88: 10 | C88: 26 | D88: 0 | E88: 0 | F88: 0 | G88: 0 | J88: 0 | K88: 0 | L88: 0 | M88: 0
A89: 1999 | B89: 10 | C89: 261 | D89: 0 | E89: 0 | F89: 0 | G89: 0 | J89: 0 | K89: 0 | L89: 0 | M89: 0
A90: 1999 | B90: 10 | C90: 262 | D90: 0 | E90: 0 | F90: 0 | G90: 0 | J90: 0 | K90: 0 | L90: 0 | M90: 0
A91: 1999 | B91: 10 | C91: 263 | D91: 0 | E91: 0 | F91: 0 | G91: 0 | J91: 0 | K91: 0 | L91: 0 | M91: 0
A92: 1999 | B92: 10 | C92: 264 | D92: 0 | E92: 0 | F92: 0 | G92: 0 | J92: 0 | K92: 0 | L92: 0 | M92: 0
A93: 1999 | B93: 10 | C93: 267 | D93: 0 | E93: 0 | F93: 0 | G93: 0 | J93: 0 | K93: 0 | L93: 0 | M93: 0
A94: 1999 | B94: 10 | C94: 2671 | D94: 0 | E94: 0 | F94: 0 | G94: 0 | J94: 0 | K94: 0 | L94: 0 | M94: 0
A95: 1999 | B95: 10 | C95: 2672 | D95: 0 | E95: 0 | F95: 0 | G95: 0 | J95: 0 | K95: 0 | L95: 0 | M95: 0
A96: 1999 | B96: 10 | C96: 2677 | D96: 0 | E96: 0 | F96: 0 | G96: 0 | J96: 0 | K96: 0 | L96: 0 | M96: 0
A97: 1999 | B97: 10 | C97: 2678 | D97: 0 | E97: 0 | F97: 0 | G97: 0 | J97: 0 | K97: 0 | L97: 0 | M97: 0
A98: 1999 | B98: 10 | C98: 269 | D98: 0 | E98: 0 | F98: 0 | G98: 0 | J98: 0 | K98: 0 | L98: 0 | M98: 0
A99: 1999 | B99: 10 | C99: 28 | D99: 0 | E99: 2211129 | F99: 0 | G99: 11022885 | J99: 0 | K99: 13234014 | L99: 0 | M99: 13234014
A100: 1999 | B100: 10 | C100: 280 | D100: 0 | E100: 0 | F100: 0 | G100: 0 | J100: 0 | K100: 0 | L100: 0 | M100: 0
A101: 1999 | B101: 10 | C101: 2801 | D101: 0 | E101: 0 | F101: 0 | G101: 0 | J101: 0 | K101: 0 | L101: 0 | M101: 0
A102: 1999 | B102: 10 | C102: 2803 | D102: 0 | E102: 0 | F102: 0 | G102: 0 | J102: 0 | K102: 0 | L102: 0 | M102: 0
A103: 1999 | B103: 10 | C103: 2805 | D103: 0 | E103: 0 | F103: 0 | G103: 0 | J103: 0 | K103: 0 | L103: 0 | M103: 0
A104: 1999 | B104: 10 | C104: 2807 | D104: 0 | E104: 0 | F104: 0 | G104: 0 | J104: 0 | K104: 0 | L104: 0 | M104: 0
A105: 1999 | B105: 10 | C105: 2808 | D105: 0 | E105: 0 | F105: 0 | G105: 0 | J105: 0 | K105: 0 | L105: 0 | M105: 0
A106: 1999 | B106: 10 | C106: 281 | D106: 0 | E106: 2211129 | F106: 0 | G106: 11022885 | J106: 0 | K106: 13234014 | L106: 0 | M106: 13234014
A107: 1999 | B107: 10 | C107: 2810 | D107: 0 | E107: 0 | F107: 0 | G107: 0 | J107: 0 | K107: 0 | L107: 0 | M107: 0
A108: 1999 | B108: 10 | C108: 2811 | D108: 0 | E108: 0 | F108: 0 | G108: 0 | J108: 0 | K108: 0 | L108: 0 | M108: 0
A109: 1999 | B109: 10 | C109: 2812 | D109: 0 | E109: 0 | F109: 0 | G109: 170765 | J109: 0 | K109: 170765 | L109: 0 | M109: 170765
A110: 1999 | B110: 10 | C110: 2812.01 | D110: 0 | E110: 0 | F110: 0 | G110: 170765 | J110: 0 | K110: 170765 | L110: 0 | M110: 170765
A111: 1999 | B111: 10 | C111: 2813 | D111: 0 | E111: 0 | F111: 0 | G111: 0 | J111: 0 | K111: 0 | L111: 0 | M111: 0
A112: 1999 | B112: 10 | C112: 2813.01 | D112: 0 | E112: 0 | F112: 0 | G112: 0 | J112: 0 | K112: 0 | L112: 0 | M112: 0
A113: 1999 | B113: 10 | C113: 2814 | D113: 0 | E113: 0 | F113: 0 | G113: 3753325 | J113: 0 | K113: 3753325 | L113: 0 | M113: 3753325
A114: 1999 | B114: 10 | C114: 2814.01 | D114: 0 | E114: 0 | F114: 0 | G114: 3753325 | J114: 0 | K114: 3753325 | L114: 0 | M114: 3753325
A115: 1999 | B115: 10 | C115: 2815 | D115: 0 | E115: 0 | F115: 0 | G115: 0 | J115: 0 | K115: 0 | L115: 0 | M115: 0
A116: 1999 | B116: 10 | C116: 2815.01 | D116: 0 | E116: 0 | F116: 0 | G116: 0 | J116: 0 | K116: 0 | L116: 0 | M116: 0
A117: 1999 | B117: 10 | C117: 2816 | D117: 0 | E117: 0 | F117: 0 | G117: 7098795 | J117: 0 | K117: 7098795 | L117: 0 | M117: 7098795
A118: 1999 | B118: 10 | C118: 2816.01 | D118: 0 | E118: 0 | F118: 0 | G118: 1191294 | J118: 0 | K118: 1191294 | L118: 0 | M118: 1191294
A119: 1999 | B119: 10 | C119: 2816.02 | D119: 0 | E119: 0 | F119: 0 | G119: 1295658 | J119: 0 | K119: 1295658 | L119: 0 | M119: 1295658
A120: 1999 | B120: 10 | C120: 2816.03 | D120: 0 | E120: 0 | F120: 0 | G120: 3050136 | J120: 0 | K120: 3050136 | L120: 0 | M120: 3050136
A121: 1999 | B121: 10 | C121: 2816.04 | D121: 0 | E121: 0 | F121: 0 | G121: 792000 | J121: 0 | K121: 792000 | L121: 0 | M121: 792000
A122: 1999 | B122: 10 | C122: 2816.05 | D122: 0 | E122: 0 | F122: 0 | G122: 574758 | J122: 0 | K122: 574758 | L122: 0 | M122: 574758
A123: 1999 | B123: 10 | C123: 2816.06 | D123: 0 | E123: 0 | F123: 0 | G123: 194949 | J123: =D123+F123+H123 -> 0 | K123: =E123+G123+I123 -> 194949 | L123: 0 | M123: 194949
A124: 1999 | B124: 10 | C124: 2817 | D124: 0 | E124: 1815129 | F124: 0 | G124: 0 | J124: 0 | K124: 1815129 | L124: 0 | M124: 1815129
A125: 1999 | B125: 10 | C125: 2817.01 | D125: 0 | E125: 366552 | F125: 0 | G125: 0 | J125: 0 | K125: 366552 | L125: 0 | M125: 366552
A126: 1999 | B126: 10 | C126: 2817.02 | D126: 0 | E126: 199332 | F126: 0 | G126: 0 | J126: 0 | K126: 199332 | L126: 0 | M126: 199332
A127: 1999 | B127: 10 | C127: 2817.03 | D127: 0 | E127: 199332 | F127: 0 | G127: 0 | J127: 0 | K127: 199332 | L127: 0 | M127: 199332
A128: 1999 | B128: 10 | C128: 2817.04 | D128: 0 | E128: 762534 | F128: 0 | G128: 0 | J128: 0 | K128: 762534 | L128: 0 | M128: 762534
A129: 1999 | B129: 10 | C129: 2818 | D129: 0 | E129: 396000 | F129: 0 | G129: 0 | J129: 0 | K129: 396000 | L129: 0 | M129: 396000
A130: 1999 | B130: 10 | C130: 29 | D130: 0 | E130: 0 | F130: 0 | G130: 0 | J130: 0 | K130: 0 | L130: 0 | M130: 0
A131: 1999 | B131: 10 | C131: 290 | D131: 0 | E131: 0 | F131: 0 | G131: 0 | J131: 0 | K131: 0 | L131: =IF(J131>K131,J131-K131,0) -> 0 | M131: =IF(K131>J131,K131-J131,0) -> 0
A132: 1999 | B132: 10 | C132: 291 | D132: 0 | E132: 0 | F132: 0 | G132: 0 | J132: 0 | K132: 0 | L132: 0 | M132: 0
A133: 1999 | B133: 10 | C133: 293 | D133: 0 | E133: 0 | F133: 0 | G133: 0 | J133: 0 | K133: 0 | L133: 0 | M133: 0
A134: 1999 | B134: 10 | C134: 296 | D134: 0 | E134: 0 | F134: 0 | G134: 0 | J134: 0 | K134: 0 | L134: 0 | M134: 0
A135: 1999 | B135: 10 | C135: 3 | D135: 291722380.3 | E135: 0 | F135: 3109265815 | G135: 2896447151 | J135: 3400988196 | K135: 2896447151 | L135: 504541044.4 | M135: 0
A136: 1999 | B136: 10 | C136: 30 | D136: 0 | E136: 0 | F136: 0 | G136: 0 | J136: 0 | K136: 0 | L136: 0 | M136: 0
A137: 1999 | B137: 10 | C137: 300 | D137: 0 | E137: 0 | F137: 0 | G137: 0 | J137: 0 | K137: 0 | L137: 0 | M137: 0
A138: 1999 | B138: 10 | C138: 301 | D138: 0 | E138: 0 | F138: 0 | G138: 0 | J138: 0 | K138: 0 | L138: 0 | M138: 0
A139: 1999 | B139: 10 | C139: 3011 | D139: 0 | E139: 0 | F139: 0 | G139: 0 | J139: 0 | K139: 0 | L139: 0 | M139: 0
A140: 1999 | B140: 10 | C140: 3012 | D140: 0 | E140: 0 | F140: 0 | G140: 0 | J140: 0 | K140: 0 | L140: 0 | M140: 0
A141: 1999 | B141: 10 | C141: 3013 | D141: 0 | E141: 0 | F141: 0 | G141: 0 | J141: 0 | K141: 0 | L141: 0 | M141: 0
A142: 1999 | B142: 10 | C142: 3014 | D142: 0 | E142: 0 | F142: 0 | G142: 0 | J142: 0 | K142: 0 | L142: 0 | M142: 0
A143: 1999 | B143: 10 | C143: 3015 | D143: 0 | E143: 0 | F143: 0 | G143: 0 | J143: 0 | K143: 0 | L143: 0 | M143: 0
A144: 1999 | B144: 10 | C144: 3016 | D144: 0 | E144: 0 | F144: 0 | G144: 0 | J144: 0 | K144: 0 | L144: 0 | M144: 0
A145: 1999 | B145: 10 | C145: 3018 | D145: 0 | E145: 0 | F145: 0 | G145: 0 | J145: 0 | K145: 0 | L145: 0 | M145: 0
A146: 1999 | B146: 10 | C146: 308 | D146: 0 | E146: 0 | F146: 0 | G146: 0 | J146: 0 | K146: 0 | L146: 0 | M146: 0
A147: 1999 | B147: 10 | C147: 32 | D147: 0 | E147: 0 | F147: 8804131 | G147: 8804131 | J147: 8804131 | K147: 8804131 | L147: 0 | M147: 0
A148: 1999 | B148: 10 | C148: 320 | D148: 0 | E148: 0 | F148: 0 | G148: 0 | J148: 0 | K148: 0 | L148: 0 | M148: 0
A149: 1999 | B149: 10 | C149: 321 | D149: 18400472 | E149: 0 | F149: 27204603 | G149: 0 | J149: 45605075 | K149: 0 | L149: 45605075 | M149: 0
A150: 1999 | B150: 10 | C150: 322 | D150: 0 | E150: 18400472 | F150: 0 | G150: 27204603 | J150: 0 | K150: 45605075 | L150: 0 | M150: 45605075
A151: 1999 | B151: 10 | C151: 323 | D151: 0 | E151: 0 | F151: 0 | G151: 0 | J151: 0 | K151: 0 | L151: 0 | M151: 0
A152: 1999 | B152: 10 | C152: 324 | D152: 0 | E152: 0 | F152: 0 | G152: 0 | J152: 0 | K152: 0 | L152: 0 | M152: 0
A153: 1999 | B153: 10 | C153: 328 | D153: 0 | E153: 0 | F153: 0 | G153: 0 | J153: 0 | K153: 0 | L153: 0 | M153: 0
A154: 1999 | B154: 10 | C154: 33 | D154: 0 | E154: 0 | F154: 0 | G154: 0 | J154: 0 | K154: 0 | L154: 0 | M154: 0
A155: 1999 | B155: 10 | C155: 331 | D155: 0 | E155: 0 | F155: 0 | G155: 0 | J155: 0 | K155: 0 | L155: 0 | M155: 0
A156: 1999 | B156: 10 | C156: 332 | D156: 0 | E156: 0 | F156: 0 | G156: 0 | J156: 0 | K156: 0 | L156: 0 | M156: 0
A157: 1999 | B157: 10 | C157: 34 | D157: 0 | E157: 0 | F157: 0 | G157: 0 | J157: 0 | K157: 0 | L157: 0 | M157: 0
A158: 1999 | B158: 10 | C158: 341 | D158: 0 | E158: 0 | F158: 0 | G158: 0 | J158: 0 | K158: 0 | L158: 0 | M158: 0
A159: 1999 | B159: 10 | C159: 345 | D159: 0 | E159: 0 | F159: 0 | G159: 0 | J159: 0 | K159: 0 | L159: 0 | M159: 0
A160: 1999 | B160: 10 | C160: 346 | D160: 0 | E160: 0 | F160: 0 | G160: 0 | J160: 0 | K160: 0 | L160: 0 | M160: 0
A161: 1999 | B161: 10 | C161: 348 | D161: 0 | E161: 0 | F161: 0 | G161: 0 | J161: 0 | K161: 0 | L161: 0 | M161: 0
A162: 1999 | B162: 10 | C162: 35 | D162: 0 | E162: 0 | F162: 0 | G162: 0 | J162: 0 | K162: 0 | L162: 0 | M162: 0
A163: 1999 | B163: 10 | C163: 351 | D163: 0 | E163: 0 | F163: 0 | G163: 0 | J163: 0 | K163: 0 | L163: 0 | M163: 0
A164: 1999 | B164: 10 | C164: 352 | D164: 0 | E164: 0 | F164: 0 | G164: 0 | J164: 0 | K164: 0 | L164: 0 | M164: 0
A165: 1999 | B165: 10 | C165: 354 | D165: 0 | E165: 0 | F165: 0 | G165: 0 | J165: 0 | K165: 0 | L165: 0 | M165: 0
A166: 1999 | B166: 10 | C166: 356 | D166: 0 | E166: 0 | F166: 0 | G166: 0 | J166: 0 | K166: 0 | L166: 0 | M166: 0
A167: 1999 | B167: 10 | C167: 357 | D167: 0 | E167: 0 | F167: 0 | G167: 0 | J167: 0 | K167: 0 | L167: 0 | M167: 0
A168: 1999 | B168: 10 | C168: 358 | D168: 0 | E168: 0 | F168: 0 | G168: 0 | J168: 0 | K168: 0 | L168: 0 | M168: 0
A169: 1999 | B169: 10 | C169: 36 | D169: 0 | E169: 0 | F169: 0 | G169: 0 | J169: 0 | K169: 0 | L169: 0 | M169: 0
A170: 1999 | B170: 10 | C170: 361 | D170: 0 | E170: 0 | F170: 0 | G170: 0 | J170: 0 | K170: 0 | L170: 0 | M170: 0
A171: 1999 | B171: 10 | C171: 368 | D171: 0 | E171: 0 | F171: 0 | G171: 0 | J171: 0 | K171: 0 | L171: 0 | M171: 0
A172: 1999 | B172: 10 | C172: 37 | D172: 397241412.3 | E172: 0 | F172: 3205980716 | G172: 2887643020 | J172: 3603222129 | K172: 2887643020 | L172: 715579108.4 | M172: 0
A173: 1999 | B173: 10 | C173: 371 | D173: 397241412.3 | E173: 0 | F173: 3205980716 | G173: 2887643020 | J173: 3603222129 | K173: 2887643020 | L173: 715579108.4 | M173: 0
A174: 1999 | B174: 10 | C174: 3711 | D174: 0 | E174: 0 | F174: 0 | G174: 0 | J174: 0 | K174: 0 | L174: 0 | M174: 0
A175: 1999 | B175: 10 | C175: 3712 | D175: 0 | E175: 0 | F175: 0 | G175: 0 | J175: 0 | K175: 0 | L175: 0 | M175: 0
A176: 1999 | B176: 10 | C176: 378 | D176: 0 | E176: 0 | F176: 0 | G176: 0 | J176: 0 | K176: 0 | L176: 0 | M176: 0
A177: 1999 | B177: 10 | C177: 38 | D177: 0 | E177: 0 | F177: 0 | G177: 0 | J177: 0 | K177: 0 | L177: 0 | M177: 0
A178: 1999 | B178: 10 | C178: 381 | D178: 0 | E178: 0 | F178: 0 | G178: 0 | J178: 0 | K178: 0 | L178: 0 | M178: 0
A179: 1999 | B179: 10 | C179: 388 | D179: 0 | E179: 0 | F179: 0 | G179: 0 | J179: 0 | K179: 0 | L179: 0 | M179: 0
A180: 1999 | B180: 10 | C180: 39 | D180: 0 | E180: 0 | F180: 0 | G180: 0 | J180: 0 | K180: 0 | L180: 0 | M180: 0
A181: 1999 | B181: 10 | C181: 390 | D181: 0 | E181: 0 | F181: 0 | G181: 0 | J181: 0 | K181: 0 | L181: 0 | M181: 0
A182: 1999 | B182: 10 | C182: 391 | D182: 0 | E182: 0 | F182: 0 | G182: 0 | J182: 0 | K182: 0 | L182: 0 | M182: 0
A183: 1999 | B183: 10 | C183: 392 | D183: 0 | E183: 0 | F183: 0 | G183: 0 | J183: 0 | K183: 0 | L183: 0 | M183: 0
A184: 1999 | B184: 10 | C184: 393 | D184: 0 | E184: 0 | F184: 0 | G184: 0 | J184: 0 | K184: 0 | L184: 0 | M184: 0
A185: 1999 | B185: 10 | C185: 394 | D185: 0 | E185: 0 | F185: 0 | G185: 0 | J185: 0 | K185: 0 | L185: 0 | M185: 0
A186: 1999 | B186: 10 | C186: 395 | D186: 0 | E186: 0 | F186: 0 | G186: 0 | J186: 0 | K186: 0 | L186: 0 | M186: 0
A187: 1999 | B187: 10 | C187: 396 | D187: 0 | E187: 0 | F187: 0 | G187: 0 | J187: =D187+F187+H187 -> 0 | K187: =E187+G187+I187 -> 0 | L187: 0 | M187: 0
A188: 1999 | B188: 10 | C188: 397 | D188: 0 | E188: 0 | F188: 0 | G188: 0 | J188: 0 | K188: 0 | L188: 0 | M188: 0
A189: 1999 | B189: 10 | C189: 398 | D189: 0 | E189: 0 | F189: 0 | G189: 0 | J189: 0 | K189: 0 | L189: 0 | M189: 0
A190: 1999 | B190: 10 | C190: 4 | D190: 0 | E190: 301686678.3 | F190: 11148999495 | G190: 1.153763387e+10 | J190: 11148999495 | K190: 1.183932055e+10 | L190: 0 | M190: 690321051.5
A191: 1999 | B191: 10 | C191: 40 | D191: 0 | E191: 36059410.51 | F191: 3397999809 | G191: 3851340260 | J191: 3397999809 | K191: 3887399671 | L191: 0 | M191: 489399861.9
A192: 1999 | B192: 10 | C192: 401 | D192: 0 | E192: 213592785.5 | F192: 3333441719 | G192: 3974315545 | J192: 3333441719 | K192: 4187908331 | L192: 0 | M192: 854466611.9
A193: 1999 | B193: 10 | C193: 4011 | D193: 0 | E193: 33537819.51 | F193: 3316935628 | G193: 3778660579 | J193: 3316935628 | K193: 3812198399 | L193: 0 | M193: 495262770.9
A194: 1999 | B194: 10 | C194: 40110000000012 | D194: 0 | E194: 28769574 | F194: 0 | G194: 28769574 | J194: 0 | K194: 57539148 | L194: 0 | M194: 57539148
A195: 1999 | B195: 10 | C195: 40110000000013 | D195: 999302 | E195: 0 | F195: 999302 | G195: 0 | J195: 1998604 | K195: 0 | L195: =IF(J195>K195,J195-K195,0) -> 1998604 | M195: =IF(K195>J195,K195-J195,0) -> 0
A196: 1999 | B196: 10 | C196: 40110000000612 | D196: 0 | E196: 18659989 | F196: 494763020 | G196: 501466426 | J196: 494763020 | K196: 520126415 | L196: 0 | M196: 25363395
A197: 1999 | B197: 10 | C197: 40110000421085 | D197: 0 | E197: 9917850 | F197: 0 | G197: 9917850 | J197: 0 | K197: 19835700 | L197: 0 | M197: 19835700
A198: 1999 | B198: 10 | C198: 40110000519882 | D198: 0 | E198: 10528013 | F198: 10530000 | G198: 10528013 | J198: 10530000 | K198: 21056026 | L198: 0 | M198: 10526026
A199: 1999 | B199: 10 | C199: 40110000542410 | D199: 903875 | E199: 0 | F199: 903875 | G199: 0 | J199: 1807750 | K199: 0 | L199: 1807750 | M199: 0
A200: 1999 | B200: 10 | C200: 40110001558839 | D200: 0 | E200: 43787240 | F200: 43787240 | G200: 43787240 | J200: 43787240 | K200: 87574480 | L200: 0 | M200: 43787240
... 494 more rows

Sheet TranzactionJournal
A1: Current_Number | B1: Document_Number | C1: Document_Type | D1: Day | E1: Month | F1: Year | G1: Debit_Account | H1: Credit_Account | I1: Amount | J1: Explanations
A2: 1 | B2: FURNIZORI | C2: FC | D2: 1 | E2: 10 | F2: 2015 | G2: 612 | H2: 40110000000612 | I2: 25078248 | J2: [{Doc:FC|Nr:3875008}]CHIRIE ANTREFRIG/OCTOMBRIE 99
A3: 2 | B3: FURNIZORI | C3: FC | D3: 1 | E3: 10 | F3: 2015 | G3: 44261 | H3: 40110000000612 | I3: 5517215 | J3: [{Doc:FC|Nr:3875008}]CHIRIE ANTREFRIG/OCTOMBRIE 99
A4: 3 | B4: FURNIZORI | C4: FC | D4: 4 | E4: 10 | F4: 2015 | G4: 628 | H4: 40110001578399 | I4: 716803 | J4: [{Doc:FC|Nr:1481520}]DIFERENTA PRESTARI CONTINENT/SEPT.99
A5: 4 | B5: FURNIZORI | C5: FC | D5: 4 | E5: 10 | F5: 2015 | G5: 44261 | H5: 40110001578399 | I5: 157697 | J5: [{Doc:FC|Nr:1481520}]DIFERENTA PRESTARI CONTINENT/SEPT.99
A6: 5 | B6: REGCASSA | C6: CH | D6: 1 | E6: 10 | F6: 2015 | G6: 5311 | H6: 41110104229911 | I6: 509990 | J6: [{Doc:CH|Nr:1986}]INC.AN&CO/F3061622
A7: 6 | B7: REGCASSA | C7: CH | D7: 1 | E7: 10 | F7: 2015 | G7: 5311 | H7: 41110000400285 | I7: 2549948 | J7: [{Doc:CH|Nr:1985}]INC.TIMA COM/F3061620
A8: 7 | B8: REGCASSA | C8: CH | D8: 1 | E8: 10 | F8: 2015 | G8: 40110000000612 | H8: 5311 | I8: 7000000 | J8: [{Doc:CH|Nr:1612}]PL.ANTREFRIG
A9: 8 | B9: REGCASSA | C9: BF | D9: 1 | E9: 10 | F9: 2015 | G9: 6012 | H9: 5311 | I9: 77947 | J9: [{Doc:BF|Nr:10221}]PL.BENZINA
A10: 9 | B10: REGCASSA | C10: BF | D10: 1 | E10: 10 | F10: 2015 | G10: 635 | H10: 5311 | I10: 7205 | J10: [{Doc:BF|Nr:10221}]TX.DRUM
A11: 10 | B11: REGCASSA | C11: BF | D11: 1 | E11: 10 | F11: 2015 | G11: 44261 | H11: 5311 | I11: 17148 | J11: [{Doc:BF|Nr:10221}]
A12: 11 | B12: REGCASSA | C12: BF | D12: 1 | E12: 10 | F12: 2015 | G12: 6012 | H12: 5311 | I12: 77947 | J12: [{Doc:BF|Nr:42193}]PL.BENZINA
A13: 12 | B13: REGCASSA | C13: BF | D13: 1 | E13: 10 | F13: 2015 | G13: 44261 | H13: 5311 | I13: 17148 | J13: [{Doc:BF|Nr:42193}]PL.BENZINA
A14: 13 | B14: REGCASSA | C14: BF | D14: 1 | E14: 10 | F14: 2015 | G14: 635 | H14: 5311 | I14: 7205 | J14: [{Doc:BF|Nr:42193}]TX.DRUM
A15: 14 | B15: REGCASSA | C15: BON | D15: 1 | E15: 10 | F15: 2015 | G15: 635 | H15: 5311 | I15: 6000 | J15: [{Doc:BON|Nr:3123467}]TX.POD
A16: 15 | B16: REGCASSA | C16: BF | D16: 1 | E16: 10 | F16: 2015 | G16: 6012 | H16: 5311 | I16: 53279 | J16: [{Doc:BF|Nr:42195}]ULEI
A17: 16 | B17: REGCASSA | C17: BF | D17: 1 | E17: 10 | F17: 2015 | G17: 44261 | H17: 5311 | I17: 11721 | J17: [{Doc:BF|Nr:42195}]ULEI
A18: 17 | B18: REGCASSA | C18: BF | D18: 1 | E18: 10 | F18: 2015 | G18: 6012 | H18: 5311 | I18: 154138 | J18: [{Doc:BF|Nr:18}]BENZINA
A19: 18 | B19: REGCASSA | C19: BF | D19: 1 | E19: 10 | F19: 2015 | G19: 623 | H19: 5311 | I19: 6066 | J19: [{Doc:BF|Nr:18}]PROTOCOL
A20: 19 | B20: REGCASSA | C20: BF | D20: 1 | E20: 10 | F20: 2015 | G20: 6018 | H20: 5311 | I20: 110451 | J20: [{Doc:BF|Nr:18}]CONSUMABILE
A21: 20 | B21: REGCASSA | C21: BF | D21: 1 | E21: 10 | F21: 2015 | G21: 635 | H21: 5311 | I21: 11871 | J21: [{Doc:BF|Nr:18}]TX.DRUM
A22: 21 | B22: REGCASSA | C22: BF | D22: 1 | E22: 10 | F22: 2015 | G22: 44261 | H22: 5311 | I22: 342070 | J22: [{Doc:BF|Nr:18}]
A23: 22 | B23: REGCASSA | C23: BF | D23: 1 | E23: 10 | F23: 2015 | G23: 6012 | H23: 5311 | I23: 152943 | J23: [{Doc:BF|Nr:171}]BENZINA
A24: 23 | B24: REGCASSA | C24: BF | D24: 1 | E24: 10 | F24: 2015 | G24: 635 | H24: 5311 | I24: 11779 | J24: [{Doc:BF|Nr:171}]TX.DRUM
A25: 24 | B25: REGCASSA | C25: BF | D25: 1 | E25: 10 | F25: 2015 | G25: 44261 | H25: 5311 | I25: 33648 | J25: [{Doc:BF|Nr:171}]
A26: 25 | B26: REGCASSA | C26: CF | D26: 1 | E26: 10 | F26: 2015 | G26: 6018 | H26: 5311 | I26: 160656 | J26: [{Doc:CF|Nr:4396251}]CONSUMABILE
A27: 26 | B27: REGCASSA | C27: CF | D27: 1 | E27: 10 | F27: 2015 | G27: 44261 | H27: 5311 | I27: 35344 | J27: [{Doc:CF|Nr:4396251}]CONSUMABILE
A28: 27 | B28: REGCASSA | C28: BF | D28: 1 | E28: 10 | F28: 2015 | G28: 6012 | H28: 5311 | I28: 211148 | J28: [{Doc:BF|Nr:447}]BENZINA
A29: 28 | B29: REGCASSA | C29: BF | D29: 1 | E29: 10 | F29: 2015 | G29: 44261 | H29: 5311 | I29: 46452 | J29: [{Doc:BF|Nr:447}]BENZINA
A30: 29 | B30: REGCASSA | C30: BF | D30: 1 | E30: 10 | F30: 2015 | G30: 635 | H30: 5311 | I30: 14000 | J30: [{Doc:BF|Nr:447}]TX.DRUM
A31: 30 | B31: REGCASSA | C31: BF | D31: 1 | E31: 10 | F31: 2015 | G31: 623 | H31: 5311 | I31: 55100 | J31: [{Doc:BF|Nr:447}]PROTOCOL
A32: 31 | B32: REGCASSA | C32: FC | D32: 1 | E32: 10 | F32: 2015 | G32: 604 | H32: 5311 | I32: 110656 | J32: [{Doc:FC|Nr:9539391}]CARTI
A33: 32 | B33: REGCASSA | C33: FC | D33: 1 | E33: 10 | F33: 2015 | G33: 44261 | H33: 5311 | I33: 24344 | J33: [{Doc:FC|Nr:9539391}]CARTI
A34: 33 | B34: REGCASSA | C34: BON | D34: 2 | E34: 10 | F34: 2015 | G34: 635 | H34: 5311 | I34: 6000 | J34: [{Doc:BON|Nr:3160908}]TX.POD
A35: 34 | B35: REGCASSA | C35: CH | D35: 2 | E35: 10 | F35: 2015 | G35: 5311 | H35: 41110011458663 | I35: 15285488 | J35: [{Doc:CH|Nr:6545579}]INC.RAMSES/F3061862
A36: 35 | B36: REGCASSA | C36: BF | D36: 2 | E36: 10 | F36: 2015 | G36: 6012 | H36: 5311 | I36: 160145 | J36: [{Doc:BF|Nr:96994}]BENZINA
A37: 36 | B37: REGCASSA | C37: BF | D37: 2 | E37: 10 | F37: 2015 | G37: 44261 | H37: 5311 | I37: 35232 | J37: [{Doc:BF|Nr:96994}]BENZINA
A38: 37 | B38: REGCASSA | C38: BF | D38: 2 | E38: 10 | F38: 2015 | G38: 635 | H38: 5311 | I38: 14803 | J38: [{Doc:BF|Nr:96994}]TX.DRUM
A39: 38 | B39: REGCASSA | C39: CH | D39: 2 | E39: 10 | F39: 2015 | G39: 40110001578399 | H39: 5311 | I39: 5624041 | J39: [{Doc:CH|Nr:3513036}]PL.CONTINENT/F823137/21.09
A40: 39 | B40: REGCASSA | C40: CH | D40: 4 | E40: 10 | F40: 2015 | G40: 6012 | H40: 5311 | I40: 162158 | J40: [{Doc:CH|Nr:656}]BENZINA
A41: 40 | B41: REGCASSA | C41: CH | D41: 4 | E41: 10 | F41: 2015 | G41: 44261 | H41: 5311 | I41: 35675 | J41: [{Doc:CH|Nr:656}]BENZINA
A42: 41 | B42: REGCASSA | C42: CH | D42: 4 | E42: 10 | F42: 2015 | G42: 635 | H42: 5311 | I42: 12167 | J42: [{Doc:CH|Nr:656}]TX.DRUM
A43: 42 | B43: REGCASSA | C43: BF | D43: 4 | E43: 10 | F43: 2015 | G43: 6012 | H43: 5311 | I43: 246997 | J43: [{Doc:BF|Nr:460879440}]BENZINA
A44: 43 | B44: REGCASSA | C44: BF | D44: 4 | E44: 10 | F44: 2015 | G44: 44261 | H44: 5311 | I44: 54339 | J44: [{Doc:BF|Nr:460879440}]BENZINA
A45: 44 | B45: REGCASSA | C45: BF | D45: 4 | E45: 10 | F45: 2015 | G45: 635 | H45: 5311 | I45: 18644 | J45: [{Doc:BF|Nr:460879440}]TX. DRUM
A46: 45 | B46: REGCASSA | C46: CH | D46: 4 | E46: 10 | F46: 2015 | G46: 5311 | H46: 41110003167438 | I46: 509990 | J46: [{Doc:CH|Nr:1993}]INC.BARON2/F3061629
A47: 46 | B47: REGCASSA | C47: CH | D47: 4 | E47: 10 | F47: 2015 | G47: 5311 | H47: 41110006547835 | I47: 10019970 | J47: [{Doc:CH|Nr:6545610}]INC.A&D PROD/F3061897
A48: 47 | B48: REGCASSA | C48: CH | D48: 4 | E48: 10 | F48: 2015 | G48: 5311 | H48: 41110001294737 | I48: 1529969 | J48: [{Doc:CH|Nr:6545853}]INC.ROVIN COSTA/F3061621
A49: 48 | B49: REGCASSA | C49: CH | D49: 4 | E49: 10 | F49: 2015 | G49: 5311 | H49: 41110006711762 | I49: 1019979 | J49: [{Doc:CH|Nr:6545852}]INC.CAMY&TONY/F3061630
A50: 49 | B50: REGCASSA | C50: CH | D50: 5 | E50: 10 | F50: 2015 | G50: 40110000000612 | H50: 5311 | I50: 9067514 | J50: [{Doc:CH|Nr:1626}]PL.ANTREFRIG
A51: 50 | B51: REGCASSA | C51: BF | D51: 5 | E51: 10 | F51: 2015 | G51: 6012 | H51: 5311 | I51: 162980 | J51: [{Doc:BF|Nr:6720}]BENZINA
A52: 51 | B52: REGCASSA | C52: BF | D52: 5 | E52: 10 | F52: 2015 | G52: 44261 | H52: 5311 | I52: 35855 | J52: [{Doc:BF|Nr:6720}]BENZINA
A53: 52 | B53: REGCASSA | C53: BF | D53: 5 | E53: 10 | F53: 2015 | G53: 635 | H53: 5311 | I53: 15065 | J53: [{Doc:BF|Nr:6720}]TX.DRUM
A54: 53 | B54: REGCASSA | C54: CH | D54: 5 | E54: 10 | F54: 2015 | G54: 5311 | H54: 41110104229911 | I54: 509990 | J54: [{Doc:CH|Nr:6545851}]INC.AN&CO/PARTIAL F3061631
A55: 54 | B55: REGCASSA | C55: CH | D55: 5 | E55: 10 | F55: 2015 | G55: 5311 | H55: 41110000200415 | I55: 897747 | J55: [{Doc:CH|Nr:6545615}]INC.RON B/F3061900
A56: 55 | B56: REGCASSA | C56: CH | D56: 5 | E56: 10 | F56: 2015 | G56: 5311 | H56: 41110000349893 | I56: 509990 | J56: [{Doc:CH|Nr:6545614}]INC.UNION GRUP/F3061889
A57: 56 | B57: REGCASSA | C57: CH | D57: 5 | E57: 10 | F57: 2015 | G57: 5311 | H57: 41110005678099 | I57: 539993 | J57: [{Doc:CH|Nr:6545613}]INC.BURSI COM/F5215268
A58: 57 | B58: REGCASSA | C58: CH | D58: 5 | E58: 10 | F58: 2015 | G58: 5311 | H58: 41110000403682 | I58: 1287754 | J58: [{Doc:CH|Nr:6545612}]INC.MODERN/F5215267
A59: 58 | B59: REGCASSA | C59: CH | D59: 5 | E59: 10 | F59: 2015 | G59: 5311 | H59: 41110006945704 | I59: 1299988 | J59: [{Doc:CH|Nr:6545611}]INC.MASTADO/F3061896
A60: 59 | B60: REGCASSA | C60: BF | D60: 6 | E60: 10 | F60: 2015 | G60: 6012 | H60: 5311 | I60: 160854 | J60: [{Doc:BF|Nr:6937}]PL.BENZINA
A61: 60 | B61: REGCASSA | C61: BF | D61: 6 | E61: 10 | F61: 2015 | G61: 44261 | H61: 5311 | I61: 35388 | J61: [{Doc:BF|Nr:6937}]PL.BENZINA
A62: 61 | B62: REGCASSA | C62: BF | D62: 6 | E62: 10 | F62: 2015 | G62: 635 | H62: 5311 | I62: 14869 | J62: [{Doc:BF|Nr:6937}]TX.DRUM
A63: 62 | B63: REGCASSA | C63: CH | D63: 6 | E63: 10 | F63: 2015 | G63: 5311 | H63: 41110000410434 | I63: 1181234 | J63: [{Doc:CH|Nr:6545616}]INC.SUPER EL CON/F5215279
A64: 63 | B64: REGCASSA | C64: CH | D64: 6 | E64: 10 | F64: 2015 | G64: 5311 | H64: 41110004363025 | I64: 1352987 | J64: [{Doc:CH|Nr:6545617}]INC.ATDANTIS/F5215269
A65: 64 | B65: REGCASSA | C65: CH | D65: 6 | E65: 10 | F65: 2015 | G65: 5311 | H65: 41110007080627 | I65: 1079986 | J65: [{Doc:CH|Nr:6545618}]INC.KAVIAR/F3061879
A66: 65 | B66: REGCASSA | C66: CH | D66: 6 | E66: 10 | F66: 2015 | G66: 5311 | H66: 41110003579358 | I66: 2814950 | J66: [{Doc:CH|Nr:6545619}]INC.LUMIDAN/F5215276
A67: 66 | B67: REG CASA | C67: STAT | D67: 20 | E67: 10 | F67: 2015 | G67: 421 | H67: 5311 | I67: 1831458 | J67: [{Doc:STAT|Nr:}] PL SALARII PERM.09/99
A68: 67 | B68: REG CASA | C68: STAT | D68: 20 | E68: 10 | F68: 2015 | G68: 4013 | H68: 5311 | I68: 1615500 | J68: [{Doc:STAT|Nr:}] PL SALARII COLAB. 09/99
A69: 68 | B69: REG CASA | C69: NC | D69: 1 | E69: 10 | F69: 2015 | G69: 5311 | H69: 41110005011841 | I69: -8950041 | J69: [{Doc:NC|Nr:2}] REGL INC ECO PRODEXIM
A70: 69 | B70: REG CASA | C70: NC | D70: 1 | E70: 10 | F70: 2015 | G70: 5311 | H70: 41110003131607 | I70: 8950096 | J70: [{Doc:NC|Nr:2}] REGL INC CH
A71: 70 | B71: REGCASSA | C71: CH | D71: 1 | E71: 10 | F71: 2015 | G71: 5311 | H71: 41110004948410 | I71: 8080418 | J71: [{Doc:CH|Nr:1882/14.09}]INC.ONIX/F2759496
A72: 71 | B72: REGCASSA | C72: CH | D72: 7 | E72: 10 | F72: 2015 | G72: 5311 | H72: 41110001556986 | I72: 2990980 | J72: [{Doc:CH|Nr:6545622}]INC.MARINAL/F3061868/3061869
A73: 72 | B73: REGCASSA | C73: CH | D73: 7 | E73: 10 | F73: 2015 | G73: 5311 | H73: 41110007696873 | I73: 1300000 | J73: [{Doc:CH|Nr:6545620}]INC.I,V.COMEXIM/F5215284
A74: 73 | B74: REGCASSA | C74: CH | D74: 7 | E74: 10 | F74: 2015 | G74: 628 | H74: 5311 | I74: 160300 | J74: [{Doc:CH|Nr:3374200}]PL.CSV TRANSPORT
A75: 74 | B75: REGCASSA | C75: BF | D75: 7 | E75: 10 | F75: 2015 | G75: 6012 | H75: 5311 | I75: 77463 | J75: [{Doc:BF|Nr:182428}]PL.BENZINA
A76: 75 | B76: REGCASSA | C76: BF | D76: 7 | E76: 10 | F76: 2015 | G76: 44261 | H76: 5311 | I76: 17042 | J76: [{Doc:BF|Nr:182428}]PL.BENZINA
A77: 76 | B77: REGCASSA | C77: BF | D77: 7 | E77: 10 | F77: 2015 | G77: 635 | H77: 5311 | I77: 5945 | J77: [{Doc:BF|Nr:182428}]TX.DRUM
A78: 77 | B78: REGCASSA | C78: CH | D78: 7 | E78: 10 | F78: 2015 | G78: 5311 | H78: 41110013882270 | I78: 600000 | J78: [{Doc:CH|Nr:2009}]INC. FLORIS/PARTIAL F3061696
A79: 78 | B79: REGCASSA | C79: BF | D79: 7 | E79: 10 | F79: 2015 | G79: 6012 | H79: 5311 | I79: 162980 | J79: [{Doc:BF|Nr:7629}]PL.BENZINA
A80: 79 | B80: REGCASSA | C80: BF | D80: 7 | E80: 10 | F80: 2015 | G80: 44261 | H80: 5311 | I80: 35855 | J80: [{Doc:BF|Nr:7629}]PL.BENZINA
A81: 80 | B81: REGCASSA | C81: BF | D81: 7 | E81: 10 | F81: 2015 | G81: 635 | H81: 5311 | I81: 15065 | J81: [{Doc:BF|Nr:7629}]TX.DRUM
A82: 81 | B82: REGCASSA | C82: CH | D82: 8 | E82: 10 | F82: 2015 | G82: 5311 | H82: 41110007696873 | I82: 1157717 | J82: [{Doc:CH|Nr:6545624}]INC. I.V. COMEXIM/F5215284
A83: 82 | B83: REGCASSA | C83: CH | D83: 8 | E83: 10 | F83: 2015 | G83: 5311 | H83: 41110000447999 | I83: 2000000 | J83: [{Doc:CH|Nr:6545626}]INC.PESCOM ANA/PARTIAL F3061909
A84: 83 | B84: REGCASSA | C84: CH | D84: 8 | E84: 10 | F84: 2015 | G84: 5311 | H84: 41110000413937 | I84: 929969 | J84: [{Doc:CH|Nr:6545627}]INC.OANA EXIM/F5215282
A85: 84 | B85: REGCASSA | C85: CF | D85: 8 | E85: 10 | F85: 2015 | G85: 604 | H85: 5311 | I85: 24426 | J85: [{Doc:CF|Nr:8631109}]TIPIZATE
A86: 85 | B86: REGCASSA | C86: CF | D86: 8 | E86: 10 | F86: 2015 | G86: 44261 | H86: 5311 | I86: 5374 | J86: [{Doc:CF|Nr:8631109}]TIPIZATE
A87: 86 | B87: REGCASSA | C87: BF | D87: 8 | E87: 10 | F87: 2015 | G87: 6012 | H87: 5311 | I87: 160145 | J87: [{Doc:BF|Nr:2585}]BENZINA
A88: 87 | B88: REGCASSA | C88: BF | D88: 8 | E88: 10 | F88: 2015 | G88: 44261 | H88: 5311 | I88: 35232 | J88: [{Doc:BF|Nr:2585}]BENZINA
A89: 88 | B89: REGCASSA | C89: BF | D89: 8 | E89: 10 | F89: 2015 | G89: 635 | H89: 5311 | I89: 14803 | J89: [{Doc:BF|Nr:2585}]TX.DRUM
A90: 89 | B90: REGCASSA | C90: BF | D90: 8 | E90: 10 | F90: 2015 | G90: 6012 | H90: 5311 | I90: 77947 | J90: [{Doc:BF|Nr:2887}]BENZINA
A91: 90 | B91: REGCASSA | C91: BF | D91: 8 | E91: 10 | F91: 2015 | G91: 44261 | H91: 5311 | I91: 17148 | J91: [{Doc:BF|Nr:2887}]BENZINA
A92: 91 | B92: REGCASSA | C92: BF | D92: 8 | E92: 10 | F92: 2015 | G92: 635 | H92: 5311 | I92: 7205 | J92: [{Doc:BF|Nr:2887}]TX.DRUM
A93: 93 | B93: REGCASSA | C93: BF | D93: 9 | E93: 10 | F93: 2015 | G93: 44261 | H93: 5311 | I93: 16802 | J93: [{Doc:BF|Nr:221}]BENZINA
A94: 94 | B94: REGCASSA | C94: BF | D94: 9 | E94: 10 | F94: 2015 | G94: 635 | H94: 5311 | I94: 6817 | J94: [{Doc:BF|Nr:221}]TX.DRUM
A95: 96 | B95: REGCASSA | C95: CH | D95: 11 | E95: 10 | F95: 2015 | G95: 5311 | H95: 41110009108236 | I95: 3000000 | J95: [{Doc:CH|Nr:6545083}]INC. NIDIREX/F3061899
A96: 97 | B96: REGCASSA | C96: CH | D96: 11 | E96: 10 | F96: 2015 | G96: 5311 | H96: 41110013882270 | I96: 226258 | J96: [{Doc:CH|Nr:2037}]INC. FLORIS/F3061696
A97: 98 | B97: REGCASSA | C97: BF | D97: 11 | E97: 10 | F97: 2015 | G97: 6012 | H97: 5311 | I97: 162980 | J97: [{Doc:BF|Nr:98498}]BENZINA
A98: 99 | B98: REGCASSA | C98: BF | D98: 11 | E98: 10 | F98: 2015 | G98: 44261 | H98: 5311 | I98: 35855 | J98: [{Doc:BF|Nr:98498}]BENZINA
A99: 100 | B99: REGCASSA | C99: BF | D99: 11 | E99: 10 | F99: 2015 | G99: 635 | H99: 5311 | I99: 15065 | J99: [{Doc:BF|Nr:98498}]TX.DRUM
A100: 101 | B100: REGCASSA | C100: FC | D100: 11 | E100: 10 | F100: 2015 | G100: 628 | H100: 5311 | I100: 60001 | J100: [{Doc:FC|Nr:9535142}]XEROX
A101: 102 | B101: REGCASSA | C101: FC | D101: 11 | E101: 10 | F101: 2015 | G101: 44261 | H101: 5311 | I101: 13199 | J101: [{Doc:FC|Nr:9535142}]XEROX
A102: 103 | B102: REGCASSA | C102: BF | D102: 12 | E102: 10 | F102: 2015 | G102: 6012 | H102: 5311 | I102: 162980 | J102: [{Doc:BF|Nr:2102}]BENZINA
A103: 104 | B103: REGCASSA | C103: BF | D103: 12 | E103: 10 | F103: 2015 | G103: 44261 | H103: 5311 | I103: 35855 | J103: [{Doc:BF|Nr:2102}]BENZINA
A104: 105 | B104: REGCASSA | C104: BF | D104: 12 | E104: 10 | F104: 2015 | G104: 635 | H104: 5311 | I104: 15065 | J104: [{Doc:BF|Nr:2102}]TX.DRUM
A105: 106 | B105: REGCASSA | C105: BF | D105: 12 | E105: 10 | F105: 2015 | G105: 6012 | H105: 5311 | I105: 115851 | J105: [{Doc:BF|Nr:58482}]BENZINA
A106: 107 | B106: REGCASSA | C106: BF | D106: 12 | E106: 10 | F106: 2015 | G106: 44261 | H106: 5311 | I106: 25487 | J106: [{Doc:BF|Nr:58482}]BENZINA
A107: 108 | B107: REGCASSA | C107: BF | D107: 12 | E107: 10 | F107: 2015 | G107: 635 | H107: 5311 | I107: 8712 | J107: [{Doc:BF|Nr:58482}]TX.DRUM
A108: 109 | B108: REGCASSA | C108: BF | D108: 12 | E108: 10 | F108: 2015 | G108: 623 | H108: 5311 | I108: 87100 | J108: [{Doc:BF|Nr:58482}]PROTOCOL
A109: 110 | B109: REGCASSA | C109: CH | D109: 12 | E109: 10 | F109: 2015 | G109: 5311 | H109: 41110007080627 | I109: 500000 | J109: [{Doc:CH|Nr:6545636}]INC.KAVIAR/F5215299
A110: 111 | B110: REGCASSA | C110: CH | D110: 12 | E110: 10 | F110: 2015 | G110: 5311 | H110: 41110000349893 | I110: 539993 | J110: [{Doc:CH|Nr:6545635}]INC.UNION GRUP/F5215293
A111: 112 | B111: REGCASSA | C111: CH | D111: 12 | E111: 10 | F111: 2015 | G111: 5311 | H111: 41110006547835 | I111: 7934980 | J111: [{Doc:CH|Nr:6545634}]INC.A&D PROD COMPANY/F5215291
A112: 113 | B112: REGCASSA | C112: CH | D112: 12 | E112: 10 | F112: 2015 | G112: 5311 | H112: 41110000403682 | I112: 1437737 | J112: [{Doc:CH|Nr:6545633}]INC.MODERN/F5215292
A113: 114 | B113: REGCASSA | C113: CH | D113: 12 | E113: 10 | F113: 2015 | G113: 5311 | H113: 41110000447999 | I113: 2000000 | J113: [{Doc:CH|Nr:6545632}]INC.PESCOM ANA/F3061909
A114: 115 | B114: REGCASSA | C114: CH | D114: 13 | E114: 10 | F114: 2015 | G114: 5311 | H114: 41110004036228 | I114: 5020000 | J114: [{Doc:CH|Nr:6545645}]INC.COBAI/F5215289
A115: 116 | B115: REGCASSA | C115: CH | D115: 7 | E115: 10 | F115: 2015 | G115: 5311 | H115: 41110006366176 | I115: 2275476 | J115: [{Doc:CH|Nr:6545623}]INC.PERUN/F5215283
A116: 117 | B116: REGCASSA | C116: CH | D116: 12 | E116: 10 | F116: 2015 | G116: 5311 | H116: 41110003000000 | I116: 52500 | J116: [{Doc:CH|Nr:6545086}]INC.F3086086
A117: 118 | B117: REGCASSA | C117: CH | D117: 12 | E117: 10 | F117: 2015 | G117: 5311 | H117: 41110003323316 | I117: 897730 | J117: [{Doc:CH|Nr:6545637}]INC.ELNIC/F5215295
A118: 119 | B118: REGCASSA | C118: CH | D118: 11 | E118: 10 | F118: 2015 | G118: 5311 | H118: 41110002779951 | I118: 849747 | J118: [{Doc:CH|Nr:6545630}]INC.MIDROM/F5215285
A119: 120 | B119: REGCASSA | C119: CH | D119: 8 | E119: 10 | F119: 2015 | G119: 5311 | H119: 41110002779951 | I119: 1000000 | J119: [{Doc:CH|Nr:6545628}]INC.MIDROM/F5215285
A120: 121 | B120: REGCASSA | C120: CH | D120: 9 | E120: 10 | F120: 2015 | G120: 5311 | H120: 41110006717521 | I120: 4319942 | J120: [{Doc:CH|Nr:6545066}]INC.PESCAR/F3061939
A121: 122 | B121: REGCASSA | C121: CH | D121: 13 | E121: 10 | F121: 2015 | G121: 5311 | H121: 41110004363025 | I121: 1499987 | J121: [{Doc:CH|Nr:6545644}]INC.ATDANTIS/F5215298
A122: 123 | B122: REGCASSA | C122: CH | D122: 13 | E122: 10 | F122: 2015 | G122: 5311 | H122: 41110000400285 | I122: 1619986 | J122: [{Doc:CH|Nr:6545643}]INC.TIMA COM/F5215297
A123: 124 | B123: REGCASSA | C123: CH | D123: 13 | E123: 10 | F123: 2015 | G123: 5311 | H123: 41110011458663 | I123: 17000000 | J123: [{Doc:CH|Nr:6545090}]INC.RAMSES/F3061931
A124: 125 | B124: REGCASSA | C124: CH | D124: 13 | E124: 10 | F124: 2015 | G124: 5311 | H124: 41110006945704 | I124: 1079983 | J124: [{Doc:CH|Nr:6545642}]INC.MASTADO/F3086056
A125: 126 | B125: REGCASSA | C125: CH | D125: 13 | E125: 10 | F125: 2015 | G125: 40110000000612 | H125: 5311 | I125: 10000000 | J125: [{Doc:CH|Nr:1669}]PL.ANTREFRIG
A126: 127 | B126: REGCASSA | C126: CH | D126: 13 | E126: 10 | F126: 2015 | G126: 40110001578399 | H126: 5311 | I126: 6851044 | J126: [{Doc:CH|Nr:3513073}]PL.CONTINENT
A127: 128 | B127: REGCASSA | C127: CH | D127: 13 | E127: 10 | F127: 2015 | G127: 635 | H127: 5311 | I127: 18700 | J127: [{Doc:CH|Nr:3419353}]TX.TRANSPORT
A128: 129 | B128: REGCASSA | C128: CH | D128: 13 | E128: 10 | F128: 2015 | G128: 5311 | H128: 41110000410434 | I128: 1437737 | J128: [{Doc:CH|Nr:6545640}]INC.SUPER ELCON/F5215296
A129: 130 | B129: REGCASSA | C129: FC | D129: 13 | E129: 10 | F129: 2015 | G129: 628 | H129: 5311 | I129: 112624 | J129: [{Doc:FC|Nr:9535331}]DEVELOPARE
A130: 131 | B130: REGCASSA | C130: FC | D130: 13 | E130: 10 | F130: 2015 | G130: 44261 | H130: 5311 | I130: 24776 | J130: [{Doc:FC|Nr:9535331}]DEVELOPARE
A131: 132 | B131: REGCASSA | C131: CH | D131: 14 | E131: 10 | F131: 2015 | G131: 5311 | H131: 41110003000000 | I131: 367502 | J131: [{Doc:CH|Nr:6545103}]INC.F3086098
A132: 133 | B132: REGCASSA | C132: CH | D132: 14 | E132: 10 | F132: 2015 | G132: 5311 | H132: 41110013882270 | I132: 525008 | J132: [{Doc:CH|Nr:2073}]INC.FLORIS/PARTIAL F3061764
A133: 134 | B133: REGCASSA | C133: CH | D133: 14 | E133: 10 | F133: 2015 | G133: 5311 | H133: 41110003971091 | I133: 897745 | J133: [{Doc:CH|Nr:6545650}]INC.NIMBOS/F3061924
A134: 135 | B134: REGCASSA | C134: CH | D134: 14 | E134: 10 | F134: 2015 | G134: 5311 | H134: 41110007080627 | I134: 755496 | J134: [{Doc:CH|Nr:6545648}]INC.KAVIAR/F5215299
A135: 136 | B135: REGCASSA | C135: CH | D135: 14 | E135: 10 | F135: 2015 | G135: 5311 | H135: 41110006366176 | I135: 1079986 | J135: [{Doc:CH|Nr:6545647}]INC.PERUN/F3086003
A136: 137 | B136: REGCASSA | C136: CH | D136: 14 | E136: 10 | F136: 2015 | G136: 5311 | H136: 41110006945704 | I136: 885014 | J136: [{Doc:CH|Nr:6545647}]INC.MASTADO/F52152300
A137: 138 | B137: REGCASSA | C137: BF | D137: 14 | E137: 10 | F137: 2015 | G137: 6012 | H137: 5311 | I137: 76425 | J137: [{Doc:BF|Nr:259}]BENZINA
A138: 139 | B138: REGCASSA | C138: BF | D138: 14 | E138: 10 | F138: 2015 | G138: 44261 | H138: 5311 | I138: 16814 | J138: [{Doc:BF|Nr:259}]BENZINA
A139: 140 | B139: REGCASSA | C139: BF | D139: 14 | E139: 10 | F139: 2015 | G139: 635 | H139: 5311 | I139: 6822 | J139: [{Doc:BF|Nr:259}]TX.DRUM
A140: 141 | B140: REGCASSA | C140: BF | D140: 14 | E140: 10 | F140: 2015 | G140: 623 | H140: 5311 | I140: 258400 | J140: [{Doc:BF|Nr:259}]PROTOCOL
A141: 142 | B141: REGCASSA | C141: BF | D141: 14 | E141: 10 | F141: 2015 | G141: 6012 | H141: 5311 | I141: 159861 | J141: [{Doc:BF|Nr:364}]BENZINA
A142: 143 | B142: REGCASSA | C142: BF | D142: 14 | E142: 10 | F142: 2015 | G142: 44261 | H142: 5311 | I142: 35170 | J142: [{Doc:BF|Nr:364}]BENZINA
A143: 144 | B143: REGCASSA | C143: BF | D143: 14 | E143: 10 | F143: 2015 | G143: 635 | H143: 5311 | I143: 14777 | J143: [{Doc:BF|Nr:364}]TX.DRUM
A144: 145 | B144: REGCASSA | C144: BF | D144: 15 | E144: 10 | F144: 2015 | G144: 6012 | H144: 5311 | I144: 160145 | J144: [{Doc:BF|Nr:13233}]BENZINA
A145: 146 | B145: REGCASSA | C145: BF | D145: 15 | E145: 10 | F145: 2015 | G145: 44261 | H145: 5311 | I145: 35232 | J145: [{Doc:BF|Nr:13233}]BENZINA
A146: 147 | B146: REGCASSA | C146: BF | D146: 15 | E146: 10 | F146: 2015 | G146: 635 | H146: 5311 | I146: 14803 | J146: [{Doc:BF|Nr:13233}]TX.DRUM
A147: 148 | B147: REGCASSA | C147: CH | D147: 15 | E147: 10 | F147: 2015 | G147: 5311 | H147: 41110000024225 | I147: 655497 | J147: [{Doc:CH|Nr:6545004}]INC.BALBER/F3086005
A148: 149 | B148: REGCASSA | C148: CH | D148: 15 | E148: 10 | F148: 2015 | G148: 5311 | H148: 41110006547835 | I148: 8099892 | J148: [{Doc:CH|Nr:6545003}]INC.A&D PROD/F3086019
A149: 150 | B149: REGCASSA | C149: CH | D149: 15 | E149: 10 | F149: 2015 | G149: 5311 | H149: 41110006547835 | I149: 3239957 | J149: [{Doc:CH|Nr:6545002}]INC.A&D PROD/F3086013
A150: 151 | B150: REGCASSA | C150: CH | D150: 15 | E150: 10 | F150: 2015 | G150: 5311 | H150: 41110004036228 | I150: 5000000 | J150: [{Doc:CH|Nr:6545005}]INC.COBAI/F5215289
A151: 152 | B151: REGCASSA | C151: CH | D151: 15 | E151: 10 | F151: 2015 | G151: 5311 | H151: 41110013882270 | I151: 525008 | J151: [{Doc:CH|Nr:2076}]INC.FLORIS/F3061764
A152: 153 | B152: REGCASSA | C152: CH | D152: 15 | E152: 10 | F152: 2015 | G152: 5311 | H152: 41110003000000 | I152: 200000 | J152: [{Doc:CH|Nr:6545109}]INC.PARTIAL F3061940
A153: 154 | B153: REGCASSA | C153: FC | D153: 15 | E153: 10 | F153: 2015 | G153: 604 | H153: 5311 | I153: 245902 | J153: [{Doc:FC|Nr:6445272}]APLICATIE
A154: 155 | B154: REGCASSA | C154: FC | D154: 15 | E154: 10 | F154: 2015 | G154: 44261 | H154: 5311 | I154: 54098 | J154: [{Doc:FC|Nr:6445272}]APLICATIE
A155: 156 | B155: REGCASSA | C155: FC | D155: 15 | E155: 10 | F155: 2015 | G155: 321 | H155: 5311 | I155: 316230 | J155: [{Doc:FC|Nr:7226745}]STAMPILE
A156: 157 | B156: REGCASSA | C156: FC | D156: 15 | E156: 10 | F156: 2015 | G156: 44261 | H156: 5311 | I156: 69570 | J156: [{Doc:FC|Nr:7226745}]STAMPILE
A157: 158 | B157: REGCASSA | C157: CH | D157: 18 | E157: 10 | F157: 2015 | G157: 5311 | H157: 41110000024225 | I157: 600000 | J157: [{Doc:CH|Nr:6545007}]INC.BALBER/F3086005
A158: 159 | B158: REGCASSA | C158: CH | D158: 18 | E158: 10 | F158: 2015 | G158: 5311 | H158: 41110000200415 | I158: 897745 | J158: [{Doc:CH|Nr:6545006}]INC.RON B/F5215294
A159: 160 | B159: REGCASSA | C159: FC | D159: 18 | E159: 10 | F159: 2015 | G159: 6018 | H159: 5311 | I159: 1202460 | J159: [{Doc:FC|Nr:6424680}]BECURI
A160: 161 | B160: REGCASSA | C160: FC | D160: 18 | E160: 10 | F160: 2015 | G160: 44261 | H160: 5311 | I160: 264540 | J160: [{Doc:FC|Nr:6424680}]BECURI
A161: 162 | B161: REGCASSA | C161: FC | D161: 18 | E161: 10 | F161: 2015 | G161: 628 | H161: 5311 | I161: 107049 | J161: [{Doc:FC|Nr:9544320}]DEVELOPARE
A162: 163 | B162: REGCASSA | C162: FC | D162: 18 | E162: 10 | F162: 2015 | G162: 44261 | H162: 5311 | I162: 23551 | J162: [{Doc:FC|Nr:9544320}]DEVELOPARE
A163: 164 | B163: REGCASSA | C163: CF | D163: 19 | E163: 10 | F163: 2015 | G163: 321 | H163: 5311 | I163: 299180 | J163: [{Doc:CF|Nr:9403167}]RADIATOR
A164: 165 | B164: REGCASSA | C164: CF | D164: 19 | E164: 10 | F164: 2015 | G164: 44261 | H164: 5311 | I164: 65820 | J164: [{Doc:CF|Nr:9403167}]RADIATOR
A165: 166 | B165: REGCASSA | C165: CH | D165: 20 | E165: 10 | F165: 2015 | G165: 40110000000612 | H165: 5311 | I165: 8000000 | J165: [{Doc:CH|Nr:1709}]PL.ANTREFRIG
A166: 167 | B166: REGCASSA | C166: CH | D166: 20 | E166: 10 | F166: 2015 | G166: 628 | H166: 5311 | I166: 166540 | J166: [{Doc:CH|Nr:3419902}]CSV TRANSPORT
A167: 168 | B167: REGCASSA | C167: BF | D167: 20 | E167: 10 | F167: 2015 | G167: 6012 | H167: 5311 | I167: 75671 | J167: [{Doc:BF|Nr:460863970}]BENZINA
A168: 169 | B168: REGCASSA | C168: BF | D168: 20 | E168: 10 | F168: 2015 | G168: 44261 | H168: 5311 | I168: 16648 | J168: [{Doc:BF|Nr:460863970}]BENZINA
A169: 170 | B169: REGCASSA | C169: BF | D169: 20 | E169: 10 | F169: 2015 | G169: 635 | H169: 5311 | I169: 7671 | J169: [{Doc:BF|Nr:460863970}]TX.DRUM
A170: 171 | B170: REGCASSA | C170: CF | D170: 20 | E170: 10 | F170: 2015 | G170: 604 | H170: 5311 | I170: 91148 | J170: [{Doc:CF|Nr:8631112}]TIPIZATE
A171: 172 | B171: REGCASSA | C171: CF | D171: 20 | E171: 10 | F171: 2015 | G171: 44261 | H171: 5311 | I171: 20052 | J171: [{Doc:CF|Nr:8631112}]TIPIZATE
A172: 173 | B172: REGCASSA | C172: BF | D172: 21 | E172: 10 | F172: 2015 | G172: 6012 | H172: 5311 | I172: 162980 | J172: [{Doc:BF|Nr:4293}]BENZINA
A173: 174 | B173: REGCASSA | C173: BF | D173: 21 | E173: 10 | F173: 2015 | G173: 44261 | H173: 5311 | I173: 35855 | J173: [{Doc:BF|Nr:4293}]BENZINA
A174: 175 | B174: REGCASSA | C174: BF | D174: 21 | E174: 10 | F174: 2015 | G174: 635 | H174: 5311 | I174: 15065 | J174: [{Doc:BF|Nr:4293}]TX.DRUM
A175: 177 | B175: REGCASSA | C175: BF | D175: 21 | E175: 10 | F175: 2015 | G175: 6012 | H175: 5311 | I175: 212295 | J175: [{Doc:BF|Nr:232}]ULEI MOTOR
A176: 178 | B176: REGCASSA | C176: BF | D176: 21 | E176: 10 | F176: 2015 | G176: 44261 | H176: 5311 | I176: 46705 | J176: [{Doc:BF|Nr:232}]ULEI MOTOR
A177: 179 | B177: REGCASSA | C177: CH | D177: 21 | E177: 10 | F177: 2015 | G177: 5311 | H177: 41110006945704 | I177: 1724549 | J177: [{Doc:CH|Nr:6545008}]INC.MASTADO/F3086021
A178: 180 | B178: REGCASSA | C178: CH | D178: 21 | E178: 10 | F178: 2015 | G178: 5311 | H178: 41110006945704 | I178: 2868745 | J178: [{Doc:CH|Nr:6545009}]INC.MASTADO/F3086025
A179: 181 | B179: REGCASSA | C179: CH | D179: 21 | E179: 10 | F179: 2015 | G179: 5311 | H179: 41110003323316 | I179: 2658755 | J179: [{Doc:CH|Nr:6545010}]INC.ELNIC/F3086017
A180: 182 | B180: REGCASSA | C180: CH | D180: 21 | E180: 10 | F180: 2015 | G180: 5311 | H180: 41110000447999 | I180: 1099895 | J180: [{Doc:CH|Nr:6545011}]INC.PESCOM ANA/F3061909
A181: 183 | B181: REGCASSA | C181: CH | D181: 21 | E181: 10 | F181: 2015 | G181: 5311 | H181: 41110000410434 | I181: 900000 | J181: [{Doc:CH|Nr:6545012}]INC.SUPER ELCON/F3086020
A182: 184 | B182: REGCASSA | C182: CH | D182: 21 | E182: 10 | F182: 2015 | G182: 5311 | H182: 41110000400285 | I182: 2699969 | J182: [{Doc:CH|Nr:6545013}]INC.TIMA COM/F3086022
A183: 185 | B183: REGCASSA | C183: CH | D183: 21 | E183: 10 | F183: 2015 | G183: 5311 | H183: 41110002779951 | I183: 1040000 | J183: [{Doc:CH|Nr:6545014}]INC.MIDROM/F3086008
A184: 186 | B184: REGCASSA | C184: CH | D184: 21 | E184: 10 | F184: 2015 | G184: 5311 | H184: 41110007080627 | I184: 1154796 | J184: [{Doc:CH|Nr:6545015}]INC.KAVIAR/F3086039
A185: 187 | B185: REGCASSA | C185: CH | D185: 21 | E185: 10 | F185: 2015 | G185: 5311 | H185: 41110004363025 | I185: 539993 | J185: [{Doc:CH|Nr:6545016}]INC.ATDANTIS/F3086023
A186: 188 | B186: REGCASSA | C186: CH | D186: 21 | E186: 10 | F186: 2015 | G186: 5311 | H186: 41110001294737 | I186: 1619978 | J186: [{Doc:CH|Nr:6545017}]INC.ROVIN COSTA/F3086024
A187: 189 | B187: REGCASSA | C187: CH | D187: 21 | E187: 10 | F187: 2015 | G187: 5311 | H187: 41110000413937 | I187: 200000 | J187: [{Doc:CH|Nr:6545018}]INC.OANA EXIM/F3086004
A188: 190 | B188: REGCASSA | C188: CH | D188: 22 | E188: 10 | F188: 2015 | G188: 5311 | H188: 41110000413937 | I188: 995490 | J188: [{Doc:CH|Nr:6545024}]INC.OANA EXIM/F3086004
A189: 191 | B189: REGCASSA | C189: CH | D189: 22 | E189: 10 | F189: 2015 | G189: 5311 | H189: 41110000403682 | I189: 2099964 | J189: [{Doc:CH|Nr:6545019}]INC.MODERN/F3086012
A190: 192 | B190: REGCASSA | C190: CH | D190: 22 | E190: 10 | F190: 2015 | G190: 5311 | H190: 41110000410434 | I190: 238896 | J190: [{Doc:CH|Nr:6545020}]INC.SUPER ELCON/F3086020
A191: 193 | B191: REGCASSA | C191: CH | D191: 22 | E191: 10 | F191: 2015 | G191: 5311 | H191: 41110006711762 | I191: 539993 | J191: [{Doc:CH|Nr:6545021}]INC.CAMY&TONY/F3086018
A192: 194 | B192: REGCASSA | C192: CH | D192: 22 | E192: 10 | F192: 2015 | G192: 5311 | H192: 41110000024225 | I192: 589489 | J192: [{Doc:CH|Nr:6545023}]INC.BALBER/F3086029
A193: 195 | B193: REGCASSA | C193: CH | D193: 22 | E193: 10 | F193: 2015 | G193: 40110001578399 | H193: 5311 | I193: 8000000 | J193: [{Doc:CH|Nr:3513105}]PL.CONTINENT MARINE/OCT.99
A194: 196 | B194: REGCASSA | C194: CH | D194: 22 | E194: 10 | F194: 2015 | G194: 5311 | H194: 41110011458663 | I194: 17498086 | J194: [{Doc:CH|Nr:6545123}]INC.RAMSES/F3061931/F3080002
A195: 197 | B195: REGCASSA | C195: CH | D195: 23 | E195: 10 | F195: 2015 | G195: 5311 | H195: 41110006547835 | I195: 5641970 | J195: [{Doc:CH|Nr:6545028}]INC.A&D PROD/F/3086028
A196: 198 | B196: REGCASSA | C196: CH | D196: 23 | E196: 10 | F196: 2015 | G196: 5311 | H196: 41110003971091 | I196: 614803 | J196: [{Doc:CH|Nr:6545027}]INC.NIMBUS/F/3086007
A197: 199 | B197: REGCASSA | C197: CH | D197: 23 | E197: 10 | F197: 2015 | G197: 5311 | H197: 41110006366176 | I197: 871245 | J197: [{Doc:CH|Nr:6545026}]INC.PERUN/F/3086026
A198: 200 | B198: REGCASSA | C198: CH | D198: 23 | E198: 10 | F198: 2015 | G198: 5311 | H198: 41110003167438 | I198: 200000 | J198: [{Doc:CH|Nr:6545025}]INC.BARON 2 F/3086015
A199: 201 | B199: REGCASSA | C199: CH | D199: 23 | E199: 10 | F199: 2015 | G199: 5311 | H199: 41110009354003 | I199: 2721603 | J199: [{Doc:CH|Nr:6545030}]INC.DELT FISCH/F/3086010
A200: 202 | B200: REGCASSA | C200: CH | D200: 23 | E200: 10 | F200: 2015 | G200: 5311 | H200: 41110009108236 | I200: 3329981 | J200: [{Doc:CH|Nr:3061899}]INC.NIDIREX F/3061899
... 1811 more rows

Sheet Parameters
A2: Current Month: | B2: 10
A3: Current Year: | B3: 2015
A4: ChartOfAccounts | B4: "Chart_of_Accounts"
